[Event "LAT-chW 2020"]
[Site "Riga"]
[Date "2020.08.27"]
[Round "5.2"]
[White "Kazmerika, Anna"]
[Black "Rogule, Laura"]
[Result "0-1"]
[ECO "D02"]
[WhiteElo "1615"]
[BlackElo "2297"]
[Annotator "ChessBase"]
[PlyCount "144"]
[EventDate "2020.08.24"]
[EventType "swiss"]
[EventCountry "LAT"]
[SourceTitle "playchess.com"]
[Source "ChessBase"]
[SourceQuality "1"]
[TimeControl "5400+30"]

1. d4 {[%emt 0:00:00]} d5 {[%emt 0:00:00]} 2. Bf4 {[%emt 0:00:00]} Nf6 {[%emt 0:00:00]} 3. e3 {[%emt 0:00:09]} c5 {[%emt 0:03:27]} 4. Nf3 {[%emt 0:02:30]} Qb6 {[%emt 0:01:21]} 5. Nc3 {[%emt 0:01:37]} c4 {[%emt 0:00:59]} 6. Rb1 {[%emt 0:04:16]} Bf5 {[%emt 0:01:05]} 7. Be2 {[%emt 0:02:18]} e6 {[%emt 0:01:01]} 8. a3 {[%emt 0:00:17]} Nbd7 {[%emt 0:12:16]} 9. O-O {[%emt 0:07:33]} Bd6 {[%emt 0:15:11]} 10. Bxd6 {[%emt 0:11:18]} Qxd6 {[%emt 0:00:05]} 11. b3 {[%emt 0:00:49]} cxb3 {[%emt 0:01:45]} 12. Rxb3 {[%emt 0:00:05]} O-O {[%emt 0:03:22]} 13. Nb5 {[%emt 0:07:32]} Qc6 {[%emt 0:04:19]} 14. Rc3 {[%emt 0:23:02]} Qb6 {[%emt 0:01:28]} 15. Rb3 {[%emt 0:01:21]} Rfc8 {[%emt 0:07:42]} 16. Bd3 {[%emt 0:00:08]} Ne4 {[%emt 0:09:59]} 17. Bxe4 {[%emt 0:01:28]} Bxe4 {[%emt 0:03:04]} 18. Nc3 {[%emt 0:01:34]} Qc6 {[%emt 0:01:36]} 19. Nxe4 {[%emt 0:03:55]} dxe4 {[%emt 0:00:02]} 20. Nd2 {[%emt 0:01:01]} b5 {[%emt 0:01:06]} 21. Qb1 {[%emt 0:03:37]} Qxc2 {[%emt 0:08:16]} 22. Nxe4 {[%emt 0:01:07]} a6 {[%emt 0:00:29]} 23. f3 {[%emt 0:05:05]} Nb6 {[%emt 0:08:17]} 24. Nc5 {[%emt 0:00:42]} Qxb1 {[%emt 0:00:23]} 25. Rfxb1 {[%emt 0:00:23]} Nc4 {[%emt 0:01:57]} 26. Rd1 {[%emt 0:01:15]} e5 {[%emt 0:02:32]} 27. Kf2 {[%emt 0:01:56]} exd4 {[%emt 0:01:25]} 28. exd4 {[%emt 0:00:02]} Nd6 {[%emt 0:01:10]} 29. g4 {[%emt 0:01:41]} a5 {[%emt 0:00:48]} 30. Ne4 {[%emt 0:02:49]} Rc2+ {[%emt 0:00:20]} 31. Kg3 {[%emt 0:00:35]} a4 {[%emt 0:00:58]} 32. Rb4 {[%emt 0:02:18]} Nc4 {[%emt 0:04:12]} 33. Rxb5 {[%emt 0:01:51]} Nxa3 {[%emt 0:00:15]} 34. Rc5 {[%emt 0:01:49]} Rxc5 {[%emt 0:02:35]} 35. dxc5 {[%emt 0:03:17]} Nb5 {[%emt 0:00:11]} 36. Nd6 {[%emt 0:02:19]} Nc3 {[%emt 0:01:07]} 37. Ra1 {[%emt 0:00:08]} Kf8 {[%emt 0:01:05]} 38. Ra3 {[%emt 0:00:50]} Ne2+ {[%emt 0:00:32]} 39. Kf2 {[%emt 0:00:36]} Nd4 {[%emt 0:00:11]} 40. Ra2 {[%emt 0:02:19]} Ke7 {[%emt 0:00:49]} 41. Ke3 {[%emt 0:00:36]} Ne6 {[%emt 0:00:41]} 42. Ne4 {[%emt 0:01:15]} Kd7 {[%emt 0:00:16]} 43. Kd3 {[%emt 0:00:11]} Kc6 {[%emt 0:00:33]} 44. Kc4 {[%emt 0:00:13]} a3 {[%emt 0:00:47]} 45. Kb4 {[%emt 0:00:39]} Nd4 {[%emt 0:00:33]} 46. f4 {[%emt 0:03:18]} Nb5 {[%emt 0:01:26]} 47. h3 {[%emt 0:00:56]} Rd8 {[%emt 0:00:32]} 48. Nd6 {[%emt 0:00:38]} Nxd6 {[%emt 0:00:12]} 49. cxd6 {[%emt 0:00:06]} Rxd6 {[%emt 0:00:41]} 50. Rxa3 {[%emt 0:00:18]} Rd4+ {[%emt 0:00:06]} 51. Kc3 {[%emt 0:00:27]} Rxf4 {[%emt 0:00:03]} 52. Kd2 {[%emt 0:00:21]} Kd5 {[%emt 0:00:59]} 53. Ke3 {[%emt 0:00:23]} Rf1 {[%emt 0:00:50]} 54. Ke2 {[%emt 0:00:43]} Rf6 {[%emt 0:00:24]} 55. Ke3 {[%emt 0:00:05]} Rc6 {[%emt 0:01:15]} 56. Kd3 {[%emt 0:00:56]} Ke5 {[%emt 0:00:28]} 57. Ke3 {[%emt 0:00:12]} Rc5 {[%emt 0:00:28]} 58. Rb3 {[%emt 0:00:45]} Kf6 {[%emt 0:00:25]} 59. Kf3 {[%emt 0:00:16]} h5 {[%emt 0:00:22]} 60. Kg3 {[%emt 0:01:17]} Kg5 {[%emt 0:00:12]} 61. h4+ {[%emt 0:00:46]} Kg6 {[%emt 0:00:08]} 62. Rd3 {[%emt 0:00:32]} f6 {[%emt 0:00:21]} 63. Rb3 {[%emt 0:00:29]} Re5 {[%emt 0:00:15]} 64. Kf3 {[%emt 0:00:30]} Re1 {[%emt 0:00:44]} 65. Rb5 {[%emt 0:00:30]} hxg4+ {[%emt 0:00:47]} 66. Kxg4 {[%emt 0:00:07]} f5+ {[%emt 0:00:10]} 67. Kf4 {[%emt 0:00:44]} Rg1 {[%emt 0:01:12]} 68. Rb6+ {[%emt 0:00:39]} Kh5 {[%emt 0:00:06]} 69. Kxf5 {[%emt 0:00:14]} Rg4 {[%emt 0:01:23]} 70. Rb1 {[%emt 0:00:47]} g6+ {[%emt 0:00:24]} 71. Kf6 {[%emt 0:00:13]} Rf4+ {[%emt 0:00:37]} 72. Ke5 {[%emt 0:00:41]} Rxh4 {[%emt 0:00:16]} 0-1

[Event "LAT-chW 2020"]
[Site "Riga"]
[Date "2020.08.27"]
[Round "5.3"]
[White "Osobskaja, Zinaida"]
[Black "Gorozhankina, Julia"]
[Result "0-1"]
[ECO "B34"]
[WhiteElo "1682"]
[BlackElo "2035"]
[Annotator "ChessBase"]
[PlyCount "36"]
[EventDate "2020.08.24"]
[EventType "swiss"]
[EventCountry "LAT"]
[SourceTitle "playchess.com"]
[Source "ChessBase"]
[SourceQuality "1"]
[TimeControl "5400+30"]

1. e4 {[%emt 0:00:00]} c5 {[%emt 0:01:25]} 2. Nf3 {[%emt 0:00:40]} Nc6 {[%emt 0:00:12]} 3. d4 {[%emt 0:00:13]} cxd4 {[%emt 0:00:04]} 4. Nxd4 {[%emt 0:00:10]} g6 {[%emt 0:00:08]} 5. Be3 {[%emt 0:02:28]} Bg7 {[%emt 0:00:21]} 6. c3 {[%emt 0:00:16]} Nf6 {[%emt 0:00:29]} 7. f3 {[%emt 0:01:16]} O-O {[%emt 0:00:48]} 8. Bd3 {[%emt 0:00:35]} d5 {[%emt 0:04:02]} 9. Nd2 {[%emt 0:01:07]} Ne5 {[%emt 0:04:57]} 10. Be2 {[%emt 0:02:10]} dxe4 {[%emt 0:07:31]} 11. Nxe4 {[%emt 0:00:22]} Nd5 {[%emt 0:04:19]} 12. Bf2 {[%emt 0:01:01]} b6 {[%emt 0:07:27]} 13. f4 {[%emt 0:01:35]} Nxf4 {[%emt 0:02:25]} 14. O-O {[%emt 0:00:09]} Nxe2+ {[%emt 0:04:29]} 15. Qxe2 {[%emt 0:00:16]} Bb7 {[%emt 0:05:17]} 16. Nd2 {[%emt 0:02:24]} Qc8 {[%emt 0:09:10]} 17. Bg3 {[%emt 0:02:22]} Ba6 {[%emt 0:04:36]} 18. Nb5 {[%emt 0:00:40]} Qc5+ {[%emt 0:00:36]} 0-1

[Event "LAT-chW 2020"]
[Site "Riga"]
[Date "2020.08.27"]
[Round "5.4"]
[White "Parhomenko, Anastasija"]
[Black "Golsta, Ramona"]
[Result "1/2-1/2"]
[ECO "A16"]
[WhiteElo "1417"]
[BlackElo "1708"]
[Annotator "NA"]
[PlyCount "91"]
[EventDate "2020.08.24"]
[EventType "swiss"]
[EventCountry "LAT"]
[SourceTitle "playchess.com"]
[Source "ChessBase"]
[SourceQuality "1"]
[TimeControl "5400+30"]

1. c4 {[%emt 0:22:02]} Nf6 {[%emt 0:00:34]} 2. Nc3 {[%emt 0:00:42]} g6 {[%emt 0:00:47]} 3. e4 {[%emt 0:01:21]} d6 {[%emt 0:02:41]} 4. g3 {[%emt 0:02:37]} b6 {[%emt 0:02:34]} 5. Bg2 {[%emt 0:01:56]} Bb7 {[%emt 0:00:12]} 6. Nge2 {[%emt 0:03:15]} h5 {[%emt 0:04:03]} 7. d3 {[%emt 0:03:36]} h4 {[%emt 0:01:44]} 8. h3 {[%emt 0:00:29]} hxg3 {[%emt 0:00:54]} 9. fxg3 {[%emt 0:00:38]} Nbd7 {[%emt 0:01:27]} 10. Bg5 {[%emt 0:02:56]} Rh5 {[%emt 0:08:22]} 11. Qd2 {[%emt 0:04:00]} Ne5 {[%emt 0:01:02]} 12. Rf1 {[%emt 0:03:39]} Nxd3+ {[%emt 0:01:46]} 13. Qxd3 {[%emt 0:00:40]} Rxg5 {[%emt 0:00:03]} 14. Nd5 {[%emt 0:01:25]} Bxd5 {[%emt 0:03:12]} 15. exd5 {[%emt 0:01:44]} Bg7 {[%emt 0:01:09]} 16. O-O-O {[%emt 0:01:40]} Nd7 {[%emt 0:06:13]} 17. Rf4 {[%emt 0:03:40]} Ne5 {[%emt 0:03:20]} 18. Qb3 {[%emt 0:00:58]} Rh5 {[%emt 0:02:17]} 19. Kb1 {[%emt 0:01:32]} Qd7 {[%emt 0:01:41]} 20. Nd4 {[%emt 0:04:04]} a5 {[%emt 0:04:45]} 21. a4 {[%emt 0:03:21]} Qc8 {[%emt 0:00:48]} 22. g4 {[%emt 0:01:56]} Rh8 {[%emt 0:00:32]} 23. g5 {[%emt 0:05:33]} Rh5 {[%emt 0:04:36]} 24. h4 {[%emt 0:01:31]} Nd7 {[%emt 0:01:21]} 25. Bh3 {[%emt 0:03:53]} Qa6 {[%emt 0:04:29]} 26. Bxd7+ {[%emt 0:02:41]} Kxd7 {[%emt 0:00:02]} 27. Rxf7 {[%emt 0:00:18]} Be5 {[%emt 0:00:35]} 28. Nc6 {[%emt 0:07:05]} Rxh4 {[%emt 0:01:42]} 29. Rxe7+ {[%emt 0:00:31]} Kc8 {[%emt 0:00:03]} 30. Rf1 {[%emt 0:03:59]} Kb7 {[%emt 0:03:33]} 31. Nxe5 {[%emt 0:03:09]} dxe5 {[%emt 0:00:17]} 32. Rxe5 {[%emt 0:00:15]} Qxc4 {[%emt 0:04:05]} 33. Qxc4 {[%emt 0:00:45]} Rxc4 {[%emt 0:00:02]} 34. b3 {[%emt 0:01:31]} Rg4 {[%emt 0:00:50]} 35. Rc1 {[%emt 0:01:37]} Rc8 {[%emt 0:01:29]} 36. Kb2 {[%emt 0:03:08]} Kb8 {[%emt 0:02:57]} 37. Rc4 {[%emt 0:00:37]} Rg2+ {[%emt 0:01:42]} 38. Rc2 {[%emt 0:00:11]} Rxc2+ {[%emt 0:02:33]} 39. Kxc2 {[%emt 0:00:04]} Rd8 {[%emt 0:00:06]} 40. Kc3 {[%emt 0:00:56]} Rd6 {[%emt 0:03:21]} 41. Re6 {[%emt 0:02:04]} Kb7 {[%emt 0:02:46]} 42. Rxd6 {[%emt 0:01:07]} cxd6 {[%emt 0:00:02]} 43. Kd4 {[%emt 0:00:40]} Ka7 {[%emt 0:00:44]} 44. Kc3 {[%emt 0:00:07]} Kb7 {[%emt 0:00:40]} 45. Kd4 {[%emt 0:00:07]} Ka7 {[%emt 0:00:50]} 46. Kc3 {[%emt 0:00:06]} 1/2-1/2

[Event "LAT-chW 2020"]
[Site "Riga"]
[Date "2020.08.28"]
[Round "6.1"]
[White "Rogule, Laura"]
[Black "Gorozhankina, Julia"]
[Result "1-0"]
[ECO "A36"]
[WhiteElo "2297"]
[BlackElo "2035"]
[Annotator "ChessBase"]
[PlyCount "103"]
[EventDate "2020.08.24"]
[EventType "swiss"]
[EventCountry "LAT"]
[SourceTitle "playchess.com"]
[Source "ChessBase"]
[SourceQuality "1"]
[TimeControl "5400+30"]

1. c4 {[%emt 0:00:08]} c5 {[%emt 0:00:00]} 2. g3 {[%emt 0:01:12]} Nc6 {[%emt 0:00:04]} 3. Bg2 {[%emt 0:00:45]} g6 {[%emt 0:00:18]} 4. Nc3 {[%emt 0:03:38]} Bg7 {[%emt 0:00:11]} 5. e4 {[%emt 0:01:40]} e6 {[%emt 0:00:37]} 6. Nge2 {[%emt 0:01:23]} Nge7 {[%emt 0:00:12]} 7. a3 {[%emt 0:06:49]} d6 {[%emt 0:04:17]} 8. d3 {[%emt 0:05:58]} O-O {[%emt 0:04:46]} 9. O-O {[%emt 0:02:20]} Rb8 {[%emt 0:05:18]} 10. Rb1 {[%emt 0:02:16]} b6 {[%emt 0:02:32]} 11. Be3 {[%emt 0:05:51]} e5 {[%emt 0:12:12]} 12. b4 {[%emt 0:02:40]} Nd4 {[%emt 0:03:18]} 13. Qd2 {[%emt 0:09:27]} Be6 {[%emt 0:04:23]} 14. f4 {[%emt 0:07:07]} f5 {[%emt 0:09:26]} 15. fxe5 {[%emt 0:07:41]} dxe5 {[%emt 0:01:00]} 16. bxc5 {[%emt 0:05:39]} bxc5 {[%emt 0:02:16]} 17. Rxb8 {[%emt 0:06:52]} Qxb8 {[%emt 0:00:06]} 18. Rb1 {[%emt 0:03:04]} Qc8 {[%emt 0:09:29]} 19. Nd5 {[%emt 0:00:56]} Nec6 {[%emt 0:03:42]} 20. Nxd4 {[%emt 0:06:09]} cxd4 {[%emt 0:00:55]} 21. Bh6 {[%emt 0:00:41]} Qd7 {[%emt 0:07:20]} 22. exf5 {[%emt 0:03:21]} Bxf5 {[%emt 0:03:23]} 23. Bxg7 {[%emt 0:05:39]} Kxg7 {[%emt 0:02:52]} 24. Qe2 {[%emt 0:04:14]} Bg4 {[%emt 0:02:49]} 25. Qe1 {[%emt 0:01:52]} Qd6 {[%emt 0:05:41]} 26. Nb4 {[%emt 0:01:36]} Nd8 {[%emt 0:02:04]} 27. Qe4 {[%emt 0:00:57]} Bf5 {[%emt 0:00:50]} 28. Qe2 {[%emt 0:00:28]} a5 {[%emt 0:02:50]} 29. Nd5 {[%emt 0:00:34]} Nf7 {[%emt 0:01:31]} 30. Rb7 {[%emt 0:01:29]} Re8 {[%emt 0:01:12]} 31. g4 {[%emt 0:01:10]} Bc8 {[%emt 0:00:24]} 32. Rb3 {[%emt 0:00:53]} Bd7 {[%emt 0:04:02]} 33. h3 {[%emt 0:00:34]} Ba4 {[%emt 0:02:47]} 34. Rb7 {[%emt 0:00:50]} Bc6 {[%emt 0:01:33]} 35. Rb6 {[%emt 0:00:29]} Rb8 {[%emt 0:01:42]} 36. c5 {[%emt 0:00:51]} Qxc5 {[%emt 0:00:24]} 37. Rxb8 {[%emt 0:00:05]} Bxd5 {[%emt 0:00:08]} 38. Bxd5 {[%emt 0:00:43]} Qxd5 {[%emt 0:00:05]} 39. a4 {[%emt 0:00:47]} Qc5 {[%emt 0:01:50]} 40. Rb7 {[%emt 0:00:24]} Kg8 {[%emt 0:00:45]} 41. Kh2 {[%emt 0:00:31]} Nd6 {[%emt 0:00:25]} 42. Qa2+ {[%emt 0:00:22]} Kf8 {[%emt 0:00:35]} 43. Qf2+ {[%emt 0:00:38]} Ke8 {[%emt 0:00:22]} 44. Rxh7 {[%emt 0:00:18]} e4 {[%emt 0:00:22]} 45. Qf6 {[%emt 0:00:23]} Qc2+ {[%emt 0:00:04]} 46. Kg3 {[%emt 0:00:09]} Qxd3+ {[%emt 0:00:07]} 47. Kh4 {[%emt 0:00:08]} g5+ {[%emt 0:00:33]} 48. Qxg5 {[%emt 0:00:35]} Nf7 {[%emt 0:00:15]} 49. Qg8+ {[%emt 0:00:05]} Kd7 {[%emt 0:00:09]} 50. Qxf7+ {[%emt 0:00:13]} Kc6 {[%emt 0:00:16]} 51. Qc7+ {[%emt 0:00:24]} Kd5 {[%emt 0:00:06]} 52. Rd7+ {[%emt 0:00:15]} 1-0

[Event "LAT-chW 2020"]
[Site "Riga"]
[Date "2020.08.28"]
[Round "6.2"]
[White "Golsta, Madara"]
[Black "Ter-Avetisjana, Agnesa Stepania"]
[Result "1-0"]
[ECO "B11"]
[WhiteElo "1889"]
[BlackElo "1683"]
[Annotator "NA"]
[PlyCount "93"]
[EventDate "2020.08.24"]
[EventType "swiss"]
[EventCountry "LAT"]
[SourceTitle "playchess.com"]
[Source "ChessBase"]
[SourceQuality "1"]
[TimeControl "5400+30"]

1. e4 {[%emt 0:00:00]} c6 {[%emt 0:00:47]} 2. Nf3 {[%emt 0:00:00]} d5 {[%emt 0:00:08]} 3. Nc3 {[%emt 0:00:00]} Bg4 {[%emt 0:00:11]} 4. h3 {[%emt 0:00:05]} Bxf3 {[%emt 0:00:03]} 5. Qxf3 {[%emt 0:00:07]} Nf6 {[%emt 0:00:09]} 6. d4 {[%emt 0:00:41]} e6 {[%emt 0:04:12]} 7. Bd3 {[%emt 0:00:30]} Bb4 {[%emt 0:06:48]} 8. e5 {[%emt 0:01:03]} Nfd7 {[%emt 0:01:55]} 9. Qg3 {[%emt 0:04:10]} g6 {[%emt 0:03:13]} 10. a3 {[%emt 0:02:35]} Be7 {[%emt 0:02:15]} 11. Ne2 {[%emt 0:02:35]} c5 {[%emt 0:05:35]} 12. c3 {[%emt 0:01:02]} Nc6 {[%emt 0:04:36]} 13. Be3 {[%emt 0:04:11]} c4 {[%emt 0:21:23]} 14. Bc2 {[%emt 0:00:28]} b5 {[%emt 0:00:41]} 15. h4 {[%emt 0:07:36]} Qc7 {[%emt 0:19:40]} 16. h5 {[%emt 0:01:53]} O-O-O {[%emt 0:04:12]} 17. h6 {[%emt 0:00:42]} a5 {[%emt 0:03:30]} 18. b3 {[%emt 0:04:43]} cxb3 {[%emt 0:02:47]} 19. Bxb3 {[%emt 0:00:21]} Nb6 {[%emt 0:00:07]} 20. a4 {[%emt 0:01:08]} b4 {[%emt 0:04:30]} 21. O-O {[%emt 0:01:40]} Nc4 {[%emt 0:05:17]} 22. Rfc1 {[%emt 0:03:16]} Nxe3 {[%emt 0:05:08]} 23. Qxe3 {[%emt 0:00:14]} Kb8 {[%emt 0:02:18]} 24. cxb4 {[%emt 0:06:39]} axb4 {[%emt 0:00:27]} 25. a5 {[%emt 0:01:04]} Rc8 {[%emt 0:01:15]} 26. Ba4 {[%emt 0:04:04]} Qb7 {[%emt 0:00:12]} 27. Qd3 {[%emt 0:03:07]} Nxa5 {[%emt 0:01:39]} 28. Rcb1 {[%emt 0:07:19]} Rc7 {[%emt 0:00:31]} 29. Ra2 {[%emt 0:03:28]} Rhc8 {[%emt 0:00:27]} 30. Bd7 {[%emt 0:02:37]} Rxd7 {[%emt 0:00:27]} 31. Rxa5 {[%emt 0:00:07]} Kc7 {[%emt 0:00:28]} 32. Qf3 {[%emt 0:04:02]} Bf8 {[%emt 0:00:34]} 33. Rba1 {[%emt 0:00:53]} Kb8 {[%emt 0:00:30]} 34. Qd3 {[%emt 0:01:01]} Rc4 {[%emt 0:00:25]} 35. Qb3 {[%emt 0:00:23]} Qc6 {[%emt 0:00:38]} 36. Ra6 {[%emt 0:00:55]} Qb7 {[%emt 0:00:28]} 37. Qa4 {[%emt 0:00:30]} b3 {[%emt 0:00:33]} 38. Ra8+ {[%emt 0:00:59]} Kc7 {[%emt 0:00:04]} 39. Qa5+ {[%emt 0:00:16]} Qb6 {[%emt 0:00:27]} 40. Ra7+ {[%emt 0:00:11]} Kc6 {[%emt 0:00:12]} 41. Ra6 {[%emt 0:00:33]} Rb7 {[%emt 0:00:24]} 42. Rxb6+ {[%emt 0:00:06]} Rxb6 {[%emt 0:00:01]} 43. Qa8+ {[%emt 0:00:13]} Rb7 {[%emt 0:00:21]} 44. Qxf8 {[%emt 0:00:33]} b2 {[%emt 0:00:16]} 45. Qd6+ {[%emt 0:00:05]} Kb5 {[%emt 0:00:05]} 46. Qa6+ {[%emt 0:00:10]} Kb4 {[%emt 0:00:06]} 47. Qxb7# {[%emt 0:00:06]} 1-0

[Event "LAT-chW 2020"]
[Site "Riga"]
[Date "2020.08.28"]
[Round "6.3"]
[White "Maklakova, Nellija"]
[Black "Krumina, Linda"]
[Result "1-0"]
[ECO "A37"]
[WhiteElo "1833"]
[BlackElo "2065"]
[Annotator "ChessBase"]
[PlyCount "127"]
[EventDate "2020.08.24"]
[EventType "swiss"]
[EventCountry "LAT"]
[SourceTitle "playchess.com"]
[Source "ChessBase"]
[SourceQuality "1"]
[TimeControl "5400+30"]

1. c4 {[%emt 0:00:00]} c5 {[%emt 0:00:00]} 2. Nc3 {[%emt 0:00:00]} Nc6 {[%emt 0:00:01]} 3. g3 {[%emt 0:00:09]} g6 {[%emt 0:00:52]} 4. Bg2 {[%emt 0:00:10]} Bg7 {[%emt 0:00:07]} 5. Nf3 {[%emt 0:00:43]} e5 {[%emt 0:01:22]} 6. d3 {[%emt 0:00:56]} Nge7 {[%emt 0:02:21]} 7. O-O {[%emt 0:00:57]} d6 {[%emt 0:01:44]} 8. Bg5 {[%emt 0:01:45]} h6 {[%emt 0:00:18]} 9. Bd2 {[%emt 0:01:00]} O-O {[%emt 0:01:04]} 10. Qc1 {[%emt 0:05:27]} Kh7 {[%emt 0:00:59]} 11. a3 {[%emt 0:00:25]} Bg4 {[%emt 0:05:56]} 12. h3 {[%emt 0:01:49]} Bxf3 {[%emt 0:01:28]} 13. Bxf3 {[%emt 0:00:48]} Nd4 {[%emt 0:00:17]} 14. Bxb7 {[%emt 0:02:44]} Rb8 {[%emt 0:00:59]} 15. Bg2 {[%emt 0:00:08]} Nb3 {[%emt 0:00:35]} 16. Qc2 {[%emt 0:00:26]} Nxa1 {[%emt 0:00:48]} 17. Rxa1 {[%emt 0:00:07]} Qd7 {[%emt 0:02:00]} 18. b4 {[%emt 0:06:39]} Nc6 {[%emt 0:14:58]} 19. b5 {[%emt 0:03:04]} Nd4 {[%emt 0:00:30]} 20. Qd1 {[%emt 0:01:53]} f5 {[%emt 0:00:21]} 21. e3 {[%emt 0:01:23]} Ne6 {[%emt 0:03:04]} 22. Rb1 {[%emt 0:01:50]} f4 {[%emt 0:03:10]} 23. Bc6 {[%emt 0:02:40]} Qf7 {[%emt 0:05:23]} 24. Ne4 {[%emt 0:02:27]} fxg3 {[%emt 0:01:48]} 25. fxg3 {[%emt 0:00:11]} Qe7 {[%emt 0:08:33]} 26. Qg4 {[%emt 0:03:11]} Rf5 {[%emt 0:02:47]} 27. h4 {[%emt 0:03:57]} Rbf8 {[%emt 0:09:48]} 28. Qe2 {[%emt 0:08:24]} Kh8 {[%emt 0:10:03]} 29. a4 {[%emt 0:01:54]} h5 {[%emt 0:05:49]} 30. a5 {[%emt 0:00:13]} Rb8 {[%emt 0:00:24]} 31. a6 {[%emt 0:01:11]} Nc7 {[%emt 0:01:21]} 32. Rf1 {[%emt 0:05:08]} Rxf1+ {[%emt 0:01:46]} 33. Qxf1 {[%emt 0:00:06]} Rf8 {[%emt 0:01:34]} 34. Qe2 {[%emt 0:02:04]} Bh6 {[%emt 0:01:27]} 35. Ba5 {[%emt 0:01:10]} Kg7 {[%emt 0:01:08]} 36. Kg2 {[%emt 0:01:10]} Rb8 {[%emt 0:01:58]} 37. Bc3 {[%emt 0:02:12]} Ne6 {[%emt 0:01:25]} 38. Bd5 {[%emt 0:00:53]} Nc7 {[%emt 0:01:02]} 39. Bb7 {[%emt 0:00:42]} d5 {[%emt 0:01:39]} 40. Nf2 {[%emt 0:03:01]} Kh7 {[%emt 0:04:43]} 41. Ba5 {[%emt 0:01:07]} dxc4 {[%emt 0:01:00]} 42. dxc4 {[%emt 0:00:19]} Ne8 {[%emt 0:02:06]} 43. Bc6 {[%emt 0:05:44]} Nd6 {[%emt 0:00:40]} 44. e4 {[%emt 0:05:02]} Nc8 {[%emt 0:01:03]} 45. Nd1 {[%emt 0:01:18]} Qd6 {[%emt 0:01:00]} 46. Qf3 {[%emt 0:01:22]} Ne7 {[%emt 0:00:35]} 47. Qf7+ {[%emt 0:02:06]} Bg7 {[%emt 0:00:02]} 48. Bd5 {[%emt 0:00:37]} Nxd5 {[%emt 0:01:00]} 49. exd5 {[%emt 0:02:13]} Rf8 {[%emt 0:00:12]} 50. Bc7 {[%emt 0:00:33]} Qf6 {[%emt 0:01:02]} 51. Qxf6 {[%emt 0:00:09]} Bxf6 {[%emt 0:00:03]} 52. Nc3 {[%emt 0:00:49]} Kg7 {[%emt 0:00:26]} 53. Ne4 {[%emt 0:00:24]} Rc8 {[%emt 0:01:00]} 54. Nxc5 {[%emt 0:02:12]} Kf7 {[%emt 0:00:30]} 55. Ne6 {[%emt 0:01:01]} Be7 {[%emt 0:00:16]} 56. Kf3 {[%emt 0:00:22]} Ke8 {[%emt 0:00:22]} 57. d6 {[%emt 0:01:29]} Bxd6 {[%emt 0:00:37]} 58. Bxd6 {[%emt 0:00:06]} Kd7 {[%emt 0:00:06]} 59. c5 {[%emt 0:01:40]} Kxe6 {[%emt 0:00:08]} 60. Ke4 {[%emt 0:00:01]} Rd8 {[%emt 0:00:36]} 61. Bxe5 {[%emt 0:00:17]} Rd1 {[%emt 0:00:23]} 62. Bd4 {[%emt 0:00:38]} Kd7 {[%emt 0:00:27]} 63. c6+ {[%emt 0:02:20]} Kc7 {[%emt 0:00:48]} 64. Bxa7 {[%emt 0:01:34]} 1-0

[Event "LAT-chW 2020"]
[Site "Riga"]
[Date "2020.08.28"]
[Round "6.4"]
[White "Kuznecova, Marija"]
[Black "Golsta, Ramona"]
[Result "1-0"]
[ECO "B34"]
[WhiteElo "1523"]
[BlackElo "1708"]
[Annotator "NA"]
[PlyCount "43"]
[EventDate "2020.08.24"]
[EventType "swiss"]
[EventCountry "LAT"]
[SourceTitle "playchess.com"]
[Source "ChessBase"]
[SourceQuality "1"]
[TimeControl "5400+30"]

1. e4 {[%emt 0:00:00]} c5 {[%emt 0:00:00]} 2. Nf3 {[%emt 0:00:00]} Nc6 {[%emt 0:00:06]} 3. d4 {[%emt 0:00:00]} cxd4 {[%emt 0:00:06]} 4. Nxd4 {[%emt 0:00:00]} g6 {[%emt 0:00:30]} 5. Nxc6 {[%emt 0:02:40]} dxc6 {[%emt 0:02:22]} 6. Qxd8+ {[%emt 0:03:05]} Kxd8 {[%emt 0:00:01]} 7. Bc4 {[%emt 0:00:14]} Ke8 {[%emt 0:00:42]} 8. O-O {[%emt 0:03:29]} b5 {[%emt 0:00:34]} 9. Bd3 {[%emt 0:02:40]} Bg7 {[%emt 0:01:48]} 10. a4 {[%emt 0:03:13]} b4 {[%emt 0:03:34]} 11. c3 {[%emt 0:02:54]} c5 {[%emt 0:05:22]} 12. Be3 {[%emt 0:04:34]} bxc3 {[%emt 0:04:38]} 13. bxc3 {[%emt 0:00:34]} c4 {[%emt 0:04:03]} 14. Bxc4 {[%emt 0:02:07]} Nf6 {[%emt 0:00:16]} 15. f3 {[%emt 0:02:33]} Bb7 {[%emt 0:02:55]} 16. Rd1 {[%emt 0:02:32]} Kf8 {[%emt 0:02:05]} 17. Kf2 {[%emt 0:14:51]} Rc8 {[%emt 0:02:42]} 18. Bb3 {[%emt 0:01:51]} a6 {[%emt 0:04:39]} 19. Bd4 {[%emt 0:04:57]} Rg8 {[%emt 0:03:10]} 20. Rd3 {[%emt 0:05:55]} Bh6 {[%emt 0:02:29]} 21. Bxf6 {[%emt 0:02:18]} exf6 {[%emt 0:00:10]} 22. Rd7 {[%emt 0:00:08]} 1-0